bitfinex-derivatives/quotes_SOLF0:USTF0_20240927
["timestamp","ask_amount","ask_price","bid_price","bid_amount"]
[1727447324061,3.1155,160.44,160.34,83.4685]
[1727447324266,91.35,160.47,160.34,83.4685]
[1727447324463,67.38,160.47,160.35,23.97]
[1727447324660,67.38,160.47,160.38,23.97]
[1727447324857,67.38,160.47,160.39,2.7216]
[1727447325558,67.38,160.47,160.34,83.4685]
[1727447325559,23.97,160.43,160.34,83.4685]
[1727447325759,23.97,160.43,160.35,3.1169]
[1727447325760,3.1159,160.41,160.35,3.1169]
[1727447326358,3.1159,160.41,160.34,86.1455]
[1727447326359,3.1159,160.41,160.36,3.1168]
[1727447326660,3.04961509,160.42,160.34,86.1455]
[1727447327055,23.97,160.43,160.34,86.1455]
[1727447327454,3.07643175,160.42,160.34,86.1455]
[1727447327660,23.97,160.43,160.34,86.1455]
[1727447327959,23.97,160.43,160.35,3.117]
[1727447328159,3.116,160.41,160.34,86.1455]
[1727447328362,3.08519288,160.42,160.34,86.1455]
[1727447328662,3.08519288,160.42,160.34,89.2627]
[1727447328860,3.1162,160.4,160.34,86.1455]
[1727447329065,23.97,160.43,160.34,86.1455]
[1727447329264,23.97,160.43,160.34,89.2626]
[1727447329666,3.1162,160.4,160.34,89.2626]
[1727447329863,67.38,160.47,160.38,23.97]
[1727447330066,3.1156,160.43,160.35,23.97]
[1727447330258,91.35,160.47,160.37,3.1166]
[1727447330861,91.35,160.47,160.35,23.97]
[1727447331064,91.35,160.47,160.34,86.1455]
[1727447331666,3.1155,160.43,160.37,3.1165]
[1727447331867,91.35,160.47,160.34,86.1455]
[1727447332263,91.35,160.47,160.38,3.1164]
[1727447332666,23.97,160.47,160.34,86.1455]
[1727447332866,3.1156,160.43,160.37,3.1165]
[1727447333766,3.1157,160.42,160.37,3.1165]
[1727447333964,73.11834522,160.51,160.4,23.97]
[1727447334469,3.1144,160.49,160.4,23.97]
[1727447334673,3.1144,160.49,160.41,5.3077]
[1727447334862,3.1147,160.48,160.41,5.3077]
[1727447335067,69.9691,160.51,160.42,2.6772]
[1727447335370,3.1148,160.47,160.42,2.6772]
[1727447335768,69.9691,160.51,160.42,2.6772]
[1727447336569,3.1145,160.49,160.42,2.6772]
[1727447336771,3.1145,160.49,160.43,3.1154]
[1727447337273,3.1145,160.48,160.43,3.1154]
[1727447337477,69.9691,160.51,160.43,3.1154]
[1727447337674,3.1145,160.49,160.43,3.1154]
[1727447339377,67.36,160.51,160.42,2.6772]
[1727447339575,67.36,160.51,160.44,23.97]
[1727447339775,67.36,160.51,160.42,2.6772]
[1727447341178,67.36,160.51,160.43,3.1154]
[1727447341572,67.36,160.51,160.42,2.6772]
[1727447341981,27.0613704,160.52,160.42,2.6772]
[1727447342176,23.97,160.49,160.39,23.97]
[1727447342373,23.97,160.47,160.35,7.9285]
[1727447342574,5.228,160.46,160.35,7.9285]
[1727447342879,23.97,160.44,160.35,2.5122]
[1727447343776,8.40750355,160.46,160.35,5.6292]
[1727447343976,23.97,160.44,160.35,2.5122]
[1727447344177,8.40750355,160.46,160.35,2.5122]
[1727447344376,3.1159,160.41,160.35,5.6291]
[1727447344577,8.40750355,160.46,160.35,2.5122]
[1727447344772,23.97,160.44,160.35,2.5122]
[1727447344978,3.116,160.41,160.35,2.5122]
[1727447345476,23.97,160.44,160.34,83.4685]
[1727447345987,23.97,160.42,160.34,83.4685]
[1727447347491,91.31,160.42,160.34,83.4685]
[1727447347885,3.1168,160.37,160.34,83.4685]
[1727447348280,91.31,160.42,160.34,83.4685]
[1727447348988,3.1168,160.37,160.34,83.4685]
[1727447349288,91.31,160.42,160.34,83.4685]
[1727447349989,23.97,160.39,160.34,83.4685]
[1727447350187,3.117,160.35,160.34,83.4685]
[1727447350389,6.2790871,160.35,160.34,83.4685]
[1727447350589,3.117,160.35,160.34,83.4685]
[1727447351184,6.18392809,160.35,160.34,83.4685]
[1727447352384,3.117,160.35,160.34,83.4685]
[1727447354585,3.09344781,160.37,160.34,83.4685]
[1727447354791,2.7489,160.38,160.34,83.4685]
[1727447355492,3.12671463,160.37,160.34,83.4685]
[1727447355797,6.24351463,160.37,160.34,83.4685]
[1727447355992,2.7489,160.38,160.34,83.4685]
[1727447356694,3.117,160.35,160.34,83.4685]
[1727447359494,3.117,160.35,160.24,2.5697]
[1727447359495,2.7433,160.35,160.24,2.5697]
[1727447359693,23.97,160.34,160.24,2.5697]
[1727447359894,3.1184,160.28,160.22,5.2521]
[1727447360197,23.97,160.28,160.22,2.6744]
[1727447360398,23.97,160.28,160.16,5.2066]
[1727447360591,23.97,160.3,160.17,2.6744]
[1727447360904,3.1184,160.28,160.18,23.97]
[1727447361099,23.97,160.3,160.18,23.97]
[1727447361396,3.1187,160.27,160.2,3.1198]
[1727447361598,6.17660472,160.27,160.2,3.1198]
[1727447362102,3.05790472,160.27,160.18,23.97]
[1727447362297,23.97,160.3,160.18,23.97]
[1727447362496,23.97,160.28,160.17,2.6744]
[1727447362891,23.97,160.25,160.17,2.6744]
[1727447363302,23.97,160.23,160.12,23.97]
[1727447363496,23.97,160.23,160.11,2.5258]
[1727447363800,3.1206,160.17,160.09,23.97]
[1727447364006,3.17643035,160.16,160.07,2.5258]
[1727447364210,3.1206,160.17,160.07,2.5258]
[1727447364399,3.1207,160.16,160.1,3.1218]
[1727447364905,3.1206,160.17,160.11,3.1217]
[1727447365207,3.17767907,160.16,160.11,3.1217]
[1727447365404,2.6301,160.19,160.07,2.5258]
[1727447365703,23.97,160.2,160.07,2.5258]
[1727447365704,3.16925021,160.2,160.09,23.97]
[1727447366000,3.1204,160.18,160.07,2.5258]
[1727447366195,2.6749,160.22,160.09,23.97]
[1727447366394,2.6749,160.22,160.13,3.1213]
[1727447366606,3.1204,160.18,160.08,3.16021522]
[1727447366801,3.1204,160.18,160.08,27.13021522]
[1727447367004,2.6749,160.22,160.11,3.1217]
[1727447367199,23.97,160.2,160.11,3.1217]
[1727447367605,23.97,160.2,160.07,2.5258]
[1727447367796,2.5726,160.19,160.07,2.5258]
[1727447368499,23.97,160.18,160.07,2.5258]
[1727447368703,23.97,160.15,160.06,2.6851]
[1727447368901,23.97,160.17,160.06,2.6851]
[1727447369309,23.97,160.17,159.99,74.32425648]
[1727447369310,23.97,160.15,159.99,74.32425648]
[1727447369502,2.5619,160.14,160.02,23.97]
[1727447369802,2.5619,160.14,160.04,23.97]
[1727447370005,2.483,160.18,160.06,23.97]
[1727447370006,3.11258119,160.15,160.06,23.97]
[1727447370201,5.0449,160.18,160.06,23.97]
[1727447370802,8.15404464,160.18,160.09,23.97]
[1727447371403,8.15404464,160.18,160.1,3.1218]
[1727447371809,3.1208,160.16,160.1,3.1218]
[1727447372109,8.15404464,160.18,160.09,23.97]
[1727447372311,3.1208,160.16,160.09,23.97]
[1727447372499,3.1208,160.16,160.1,3.1218]
[1727447372908,3.1208,160.16,160.09,23.97]
[1727447373214,23.97,160.17,160.04,23.97]
[1727447373507,23.97,160.17,160.06,3.1226]
[1727447373807,23.97,160.17,160.04,23.97]
[1727447374013,23.97,160.17,160.05,3.1227]
[1727447374209,23.97,160.15,160.02,23.97]
[1727447374806,23.97,160.15,160.05,3.1228]
[1727447375309,3.1211,160.15,160.07,23.97]
[1727447375513,8.15404464,160.18,160.1,23.97]
[1727447375806,3.1206,160.17,160.11,3.1217]
[1727447376012,8.15404464,160.18,160.11,3.1217]
[1727447376308,8.15404464,160.18,160.1,23.97]
[1727447376502,3.1206,160.17,160.1,23.97]
[1727447376907,8.15404464,160.18,160.1,23.97]
[1727447377107,2.5619,160.18,160.1,23.97]
[1727447377314,3.17896103,160.17,160.1,23.97]
[1727447378111,3.17896103,160.17,160.07,23.97]
[1727447378311,3.17896103,160.17,160.08,2.5867]
[1727447378711,3.17896103,160.17,160.11,3.1216]
[1727447378913,3.17896103,160.17,160.1,23.97]
[1727447379207,3.1209,160.16,160.1,23.97]
[1727447379717,2.5619,160.18,160.1,23.97]
[1727447380311,3.17600125,160.32,160.15,23.97]
[1727447380610,3.04839154,160.22,160.15,23.97]
[1727447380810,6.16799154,160.22,160.16,3.1206]
[1727447381005,6.16799154,160.22,160.15,23.97]
[1727447381006,3.04839154,160.22,160.15,23.97]
[1727447381213,3.04839154,160.22,160.14,23.97]
[1727447381515,3.09524662,160.23,160.14,23.97]
[1727447382113,3.09524662,160.23,160.16,3.1206]
[1727447382313,3.09524662,160.23,160.14,23.97]
[1727447382618,23.97,160.22,160.11,5.2583]
[1727447383118,3.12,160.2,160.14,3.1211]
[1727447383323,67.46,160.24,160.12,23.97]
[1727447383820,3.1199,160.21,160.12,23.97]
[1727447384112,3.07629272,160.21,160.12,23.97]
[1727447384309,3.1204,160.18,160.14,3.121]
[1727447384514,3.1204,160.18,160.12,23.97]
[1727447384515,3.11126124,160.21,160.12,23.97]
[1727447384716,91.43,160.24,160.12,23.97]
[1727447384911,3.1206,160.17,160.12,27.0914]
[1727447385217,6.20001491,160.17,160.12,27.0914]
[1727447385412,23.97,160.22,160.12,3.1214]
[1727447385619,23.97,160.19,160.08,2.5867]
[1727447386014,3.1209,160.15,160.1,3.1218]
[1727447386211,6.23173113,160.15,160.1,3.1218]
[1727447386411,3.11083113,160.15,160.08,2.5867]
[1727447387121,23.97,160.14,160.01,23.97]
[1727447387317,23.97,160.14,160.02,5.2851]
[1727447387619,3.1221,160.1,160.05,3.1227]
[1727447387916,23.97,160.14,160.05,3.1227]
[1727447388217,23.97,160.14,160.02,5.2851]
[1727447388816,23.97,160.11,160.02,5.2851]
[1727447389313,3.1221,160.09,160.04,3.123]
[1727447389505,23.97,160.14,160.02,5.2851]
[1727447390421,23.97,160.11,160.02,8.4085]
[1727447390913,3.1224,160.08,160.02,8.4085]
[1727447391121,23.97,160.12,160.05,3.1228]
[1727447391314,23.97,160.12,160.02,5.2851]
[1727447391714,67.46,160.13,160.02,5.2851]
[1727447392114,3.1218,160.11,160.05,3.1228]
[1727447392315,23.97,160.12,160.02,5.2851]
[1727447392917,23.97,160.12,160.02,2.7423]
[1727447393316,3.1224,160.08,160.02,2.7423]
[1727447393714,23.97,160.09,159.99,74.32425648]
[1727447394314,5.2952,160.08,159.99,74.32425648]
[1727447394721,5.2952,160.08,159.99,98.29425648]
[1727447394921,23.97,160.12,159.99,98.29425648]
[1727447395222,3.1225,160.08,160.02,3.1234]
[1727447395420,67.46,160.13,159.97,23.97]
[1727447395622,67.48,160.24,160.05,23.97]
[1727447395919,23.97,160.2,160.07,23.97]
[1727447396126,5.79824529,160.18,160.07,23.97]
[1727447396421,2.5797,160.21,160.1,23.97]
[1727447396814,23.97,160.2,160.08,23.97]
[1727447397119,27.0864838,160.2,160.08,23.97]
[1727447397526,3.1164838,160.2,160.1,23.97]
[1727447398024,6.2364838,160.2,160.13,3.1213]
[1727447398421,3.1164838,160.2,160.1,23.97]
[1727447398621,2.5797,160.21,160.1,23.97]
[1727447399219,2.5797,160.21,160.08,23.97]
[1727447399220,5.70653373,160.21,160.08,23.97]
[1727447399421,2.5797,160.21,160.08,23.97]
[1727447399923,5.70309868,160.21,160.08,23.97]
[1727447400224,2.5797,160.21,160.06,5.2373]
[1727447400426,5.72339671,160.21,160.06,5.2373]
[1727447400624,2.5797,160.21,160.11,23.97]
[1727447400922,3.11121986,160.22,160.11,23.97]
[1727447401129,23.97,160.2,160.08,23.97]
[1727447401329,3.19334882,160.2,160.09,2.6643]
[1727447401528,29.3916,160.23,160.11,23.97]
[1727447401729,3.17835951,160.21,160.13,3.1213]
[1727447401932,3.17835951,160.21,160.09,2.6643]
[1727447402131,3.1204,160.18,160.11,3.1216]
[1727447402629,27.16480483,160.18,160.09,2.6643]
[1727447402930,23.97,160.2,160.09,2.6643]
[1727447403126,3.1207,160.17,160.1,3.1218]
[1727447403332,27.0957803,160.2,160.09,26.6343]
[1727447403534,3.1257803,160.2,160.11,23.97]
[1727447403833,8.50146806,160.23,160.13,23.97]
[1727447404131,8.50146806,160.23,160.14,2.4847]
[1727447404325,23.97,160.49,160.19,23.97]
[1727447404525,2.5404,160.33,160.19,23.97]
[1727447404722,2.5404,160.33,160.22,23.97]
[1727447404933,3.1179,160.31,160.24,3.1191]
[1727447405430,3.1177,160.32,160.25,3.119]
[1727447405632,2.5404,160.33,160.25,3.119]
[1727447405828,2.5404,160.33,160.23,2.6972]
[1727447406031,3.1182,160.29,160.23,2.6972]
[1727447406828,23.97,160.31,160.23,2.6972]
[1727447407129,2.5404,160.33,160.23,2.6972]
[1727447407334,91.43,160.36,160.24,23.97]
[1727447407528,91.43,160.36,160.26,23.97]
[1727447407529,67.46,160.36,160.26,23.97]
[1727447408135,23.97,160.35,160.24,2.5584]
[1727447408831,67.46,160.36,160.24,2.5584]
[1727447408832,23.97,160.33,160.24,2.5584]
[1727447409737,23.97,160.33,160.25,3.1188]
[1727447410336,91.43,160.36,160.24,2.5584]
[1727447410532,67.46,160.36,160.24,2.5584]
[1727447410835,23.97,160.38,160.28,3.1183]
[1727447411226,3.1175,160.33,160.27,3.1185]
[1727447411433,23.97,160.38,160.26,23.97]
[1727447412131,2.5186,160.39,160.26,23.97]
[1727447412338,2.5186,160.39,160.32,3.1175]
[1727447412725,2.5186,160.39,160.29,23.97]
[1727447412927,2.5186,160.39,160.3,2.6078]
[1727447413337,3.1167,160.37,160.32,3.1175]
[1727447413536,5.58608623,160.39,160.31,2.6124]
[1727447413836,3.1171,160.35,160.31,2.6124]
[1727447414232,23.97,160.38,160.31,2.6124]
[1727447414434,3.1171,160.35,160.31,2.6124]
[1727447415132,23.97,160.38,160.31,2.6124]
[1727447415532,23.97,160.36,160.24,2.5584]
[1727447415833,23.97,160.31,160.25,2.591]
[1727447416038,23.97,160.31,160.22,2.7276]
[1727447416335,23.97,160.28,160.21,74.34487615]
[1727447416535,23.97,160.26,160.2,2.591]
[1727447416837,23.97,160.23,160.13,2.5256]
[1727447417033,23.97,160.23,160.14,2.6553]
[1727447417735,23.97,160.26,160.14,2.6553]
[1727447417931,67.4,160.28,160.17,23.97]
[1727447418531,67.4,160.28,160.19,23.97]
[1727447419130,67.4,160.28,160.22,3.1194]
[1727447419451,23.97,160.36,160.22,23.97]
[1727447419632,23.97,160.36,160.23,5.1511]
[1727447420038,23.97,160.33,160.23,5.1511]
[1727447420337,38.93,160.34,160.23,5.1511]
[1727447420544,38.93,160.36,160.23,44.0811]
[1727447420938,3.1172,160.35,160.29,3.1181]
[1727447421138,5.2786,160.37,160.26,38.93]
[1727447421334,5.2786,160.37,160.27,2.5181]
[1727447421840,38.93,160.36,160.27,2.5181]
[1727447422039,38.93,160.36,160.29,3.1182]
[1727447422237,38.93,160.36,160.23,44.0811]
[1727447422441,38.93,160.36,160.26,3.1186]
[1727447422743,38.93,160.36,160.23,44.0811]
[1727447423342,38.93,160.36,160.28,3.1183]
[1727447423532,38.93,160.36,160.23,44.0811]
[1727447423733,42.10884403,160.39,160.26,38.93]
[1727447423937,42.10884403,160.39,160.23,5.1511]
[1727447423938,38.93,160.33,160.23,5.1511]
[1727447424542,3.11243913,160.32,160.23,5.1511]
[1727447424738,3.1178,160.31,160.25,3.1188]
[1727447425037,38.93,160.33,160.23,5.1511]
[1727447425739,3.1177,160.32,160.26,3.1186]
[1727447425938,38.93,160.33,160.23,5.1511]
[1727447426646,38.93,160.31,160.23,2.6553]
[1727447426843,3.09465376,160.3,160.23,2.6553]
[1727447427040,38.93,160.31,160.19,2.7275]
[1727447427343,38.93,160.28,160.19,2.7275]
[1727447427945,41.4766,160.3,160.19,2.7275]
[1727447428243,38.93,160.3,160.2,38.93]
[1727447428445,38.93,160.28,160.18,2.6282]
[1727447428647,38.93,160.25,160.15,2.7275]
[1727447428946,38.93,160.25,160.13,2.6282]
[1727447429246,38.93,160.25,160.13,5.373]
[1727447429647,38.93,160.22,160.13,2.6282]
[1727447429842,38.93,160.2,160.13,2.6282]
[1727447430039,38.93,160.2,160.09,38.93]
[1727447430241,42.09794867,160.22,160.09,38.93]
[1727447430439,2.6134,160.23,160.08,5.2356]
[1727447430440,38.93,160.2,160.08,5.2356]
[1727447430949,38.93,160.22,160.09,38.93]
[1727447431149,3.1202,160.19,160.14,3.121]
[1727447431352,2.6134,160.23,160.11,38.93]
[1727447432148,38.93,160.22,160.09,38.93]
[1727447432353,38.93,160.22,160.08,5.2356]
[1727447432354,3.1209,160.16,160.12,3.1215]
[1727447432549,38.93,160.17,160.08,5.2356]
[1727447432845,3.1214,160.13,160.09,3.1219]
[1727447433042,38.93,160.17,160.08,2.6261]
[1727447434044,3.1213,160.14,160.1,3.1219]
[1727447434556,38.93,160.22,160.09,38.93]
[1727447434751,5.3035,160.23,160.14,38.93]
[1727447434953,2.503,160.24,160.17,38.93]
[1727447435158,41.5605,160.3,160.17,38.93]
[1727447435457,2.6162,160.29,160.17,38.93]
[1727447435949,2.6162,160.29,160.18,2.6636]
[1727447436151,3.1193,160.24,160.19,3.1201]
[1727447436350,3.1193,160.24,160.11,38.93]
[1727447436351,38.93,160.27,160.14,38.93]
[1727447436756,38.93,160.27,160.15,3.09181364]
[1727447437054,2.6162,160.29,160.17,38.93]
[1727447437255,3.1191,160.25,160.17,38.93]
[1727447437449,2.6162,160.29,160.17,38.93]
[1727447437854,38.93,160.25,160.14,38.93]
[1727447438251,38.93,160.25,160.12,2.6636]
[1727447438252,38.93,160.25,160.12,41.5936]
[1727447438648,38.93,160.25,160.15,3.1208]
[1727447438849,38.93,160.22,160.12,2.6636]
[1727447439051,3.121,160.15,160.1,3.1218]
[1727447439257,38.93,160.19,160.09,2.7324]
[1727447439668,38.93,160.15,160.07,2.6087]
[1727447439856,38.93,160.15,160.03,2.6327]
[1727447440054,3.1222,160.09,160.04,3.1229]
[1727447440254,38.93,160.15,160.01,42.1144614]
[1727447440456,3.12390607,160.14,160.01,42.1144614]
[1727447440666,38.93,160.15,160.01,42.1144614]
[1727447440865,38.93,160.15,160.07,3.1224]
[1727447441764,38.93,160.15,160.01,3.1844614]
[1727447441964,38.93,160.15,160.01,38.93]
[1727447442165,38.93,160.15,160.02,3.04865816]
[1727447443464,38.93,160.12,160.01,38.93]
[1727447443670,38.93,160.09,159.99,3.04584661]
[1727447443871,3.1225,160.07,160.03,3.1233]
[1727447444063,7.8858,160.11,160.01,38.93]
[1727447444570,3.1221,160.1,160.05,3.1227]
[1727447444768,3.1221,160.1,160.01,42.08421417]
[1727447445165,3.1221,160.09,160.05,3.1228]
[1727447445359,2.68,160.11,160.03,38.93]
[1727447445562,5.0567,160.17,160.1,3.1218]
[1727447445762,2.5897,160.17,160.09,38.93]
[1727447445971,3.06985183,160.2,160.12,38.93]
[1727447446169,3.1209,160.16,160.09,38.93]
[1727447446469,43.9867,160.22,160.09,38.93]
[1727447446776,43.9867,160.22,160.03,38.93]
[1727447446777,3.1211,160.15,160.1,3.1219]
[1727447447071,3.1211,160.15,160.09,38.93]
[1727447447373,3.1206,160.17,160.09,38.93]
[1727447447576,5.0567,160.22,160.11,38.93]
[1727447448276,43.9867,160.22,160.08,38.93]
[1727447448668,38.93,160.19,160.08,38.93]
[1727447448871,42.0079985,160.19,160.06,38.93]
[1727447449370,38.93,160.19,160.08,38.93]
[1727447449575,42.11043189,160.19,160.06,38.93]
[1727447450268,3.121,160.15,160.06,38.93]
[1727447450575,43.9867,160.22,160.06,38.93]
[1727447450774,3.1204,160.18,160.14,3.121]
[1727447450981,3.05520082,160.2,160.09,38.93]
[1727447451168,43.9867,160.22,160.14,3.121]
[1727447451372,43.9867,160.22,160.09,38.93]
[1727447451977,43.9867,160.22,160.07,2.7339]
[1727447452279,43.9867,160.22,160.06,38.93]
[1727447452473,38.93,160.19,160.06,38.93]
[1727447452774,42.0788899,160.19,160.06,38.93]
[1727447452975,38.93,160.17,160.06,38.93]
[1727447453377,3.1214,160.13,160.06,38.93]
[1727447453770,3.1214,160.13,160.08,3.1223]
[1727447454378,3.1216,160.12,160.08,3.1223]
[1727447454782,2.544,160.14,160.03,38.93]
[1727447454967,5.1192,160.14,160.03,38.93]
[1727447455372,3.122,160.1,160.03,38.93]
[1727447455677,5.1192,160.14,160.03,38.93]
[1727447457178,3.1222,160.09,160.03,38.93]
[1727447457381,44.0492,160.14,160.02,2.7334]
[1727447457578,44.0492,160.14,160.04,3.123]
[1727447457781,38.93,160.11,159.99,3.19673317]
[1727447458080,38.93,160.09,159.97,5.0818]
[1727447458576,38.93,160.12,159.99,38.93]
[1727447459582,38.93,160.12,160.02,3.1233]
[1727447459782,38.93,160.12,159.99,38.93]
[1727447459973,38.93,160.12,159.98,38.93]
[1727447460179,42.00804801,160.12,159.98,38.93]
[1727447460572,38.93,160.07,159.96,74.34487615]
[1727447460777,38.93,160.04,159.91,42.1046081]
[1727447460981,38.93,160.04,159.91,38.93]
[1727447461178,38.93,160.02,159.89,44.231]
[1727447461576,38.93,160.02,159.93,3.1251]
[1727447461577,3.1243,159.98,159.93,3.1251]
[1727447461780,38.93,160.02,159.89,41.6876]
[1727447461781,3.04929873,159.97,159.89,41.6876]
[1727447461975,2.5397,159.97,159.89,2.7576]
[1727447462182,5.72587031,159.97,159.86,38.93]
[1727447462478,2.5359,159.96,159.86,38.93]
[1727447462679,2.5359,159.96,159.89,38.93]
[1727447463086,2.5397,159.97,159.89,38.93]
[1727447463285,5.6642,159.97,159.93,3.1252]
[1727447463588,2.5397,159.97,159.89,38.93]
[1727447464284,2.5397,159.97,159.93,3.1251]
[1727447464683,2.5397,159.97,159.89,38.93]
[1727447464881,2.5397,159.97,159.94,3.125]
[1727447465284,2.5397,159.97,159.93,3.1251]
[1727447465684,2.5149,160.01,159.91,38.93]
[1727447466287,2.5149,160.01,159.88,3.11855189]
[1727447466785,5.67245301,160.01,159.88,3.11855189]
[1727447467588,5.67245301,160.01,159.94,3.125]
[1727447468186,2.6506,160.03,159.96,38.93]
[1727447468586,2.6506,160.03,160.0,3.1237]
[1727447468891,67.48,160.04,159.99,38.93]
[1727447469087,2.5954,160.1,160.05,3.1229]
[1727447469589,2.5954,160.1,160.03,38.93]
[1727447469784,2.5954,160.1,159.99,2.6153]
[1727447469985,41.5254,160.1,159.98,38.93]
[1727447470891,2.5954,160.1,160.03,38.93]
[1727447471388,2.5954,160.1,159.99,38.93]
[1727447471691,38.93,160.08,159.96,2.5915]
[1727447471892,38.93,160.05,159.93,2.6563]
[1727447472089,38.93,160.02,159.91,38.93]
[1727447472296,2.5411,160.04,159.92,38.93]
[1727447472595,2.5041,160.03,159.92,38.93]
[1727447472894,2.5041,160.03,159.95,3.1246]
[1727447473082,2.6278,160.02,159.95,3.1246]
[1727447473281,2.6278,160.02,159.82,2.6563]
[1727447473484,38.93,160.0,159.88,38.93]
[1727447473785,67.5,160.01,159.88,38.93]
[1727447473990,3.1247,159.96,159.89,3.1258]
[1727447474189,38.93,160.0,159.89,3.1258]
[1727447474785,38.93,159.98,159.85,38.93]
[1727447474987,3.1248,159.96,159.85,38.93]
[1727447475209,67.5,160.01,159.9,38.93]
[1727447476186,38.93,159.96,159.84,2.6873]
[1727447476384,38.93,159.94,159.83,2.7301]
[1727447476788,38.93,159.94,159.83,41.6601]
[1727447477189,38.93,159.94,159.83,2.7301]
[1727447478296,2.4966,159.95,159.86,38.93]
[1727447479000,38.93,159.99,159.86,38.93]
[1727447479190,2.7161,159.99,159.88,38.93]
[1727447479390,3.1243,159.98,159.88,42.09443085]
[1727447479893,3.1243,159.98,159.93,3.125]
[1727447480298,2.7161,159.99,159.88,38.93]
[1727447480502,38.93,159.98,159.85,38.93]
[1727447480791,3.1252,159.94,159.85,38.93]
[1727447480993,3.1252,159.94,159.83,2.7301]
[1727447480994,2.7161,159.99,159.88,38.93]
[1727447481200,2.7161,159.99,159.88,42.01689885]
[1727447481496,2.5223,160.0,159.91,38.93]
[1727447481900,41.4523,160.0,159.89,2.5046]
[1727447482102,41.4523,160.0,159.87,38.93]
[1727447482400,41.4523,160.0,159.84,41.4346]
[1727447482401,38.93,159.98,159.84,41.4346]
[1727447482603,38.93,159.98,159.84,38.93]
[1727447483090,42.10639549,159.98,159.84,38.93]
[1727447483297,42.10639549,159.98,159.86,38.93]
[1727447483695,3.125,159.95,159.9,3.1257]
[1727447483900,42.10639549,159.98,159.84,38.93]
[1727447484103,38.93,159.95,159.84,38.93]
[1727447484299,38.93,159.95,159.83,2.7301]
[1727447484497,38.93,159.93,159.83,2.7301]
[1727447484894,38.93,159.95,159.83,2.7301]
[1727447485304,3.1258,159.91,159.83,2.7301]
[1727447485503,38.93,159.95,159.83,2.7301]
[1727447485698,38.93,159.95,159.84,38.93]
[1727447485906,38.93,159.95,159.83,2.7301]
[1727447486407,38.93,159.95,159.83,41.6601]
[1727447486799,5.592701,160.0,159.88,38.93]
[1727447487100,3.1254,159.93,159.85,38.93]
[1727447487402,38.93,159.98,159.85,38.93]
[1727447487603,38.93,159.98,159.89,3.126]
[1727447487998,38.93,159.98,159.85,38.93]
[1727447488208,3.1249,159.95,159.91,3.1256]
[1727447488403,5.592701,160.0,159.88,38.93]
[1727447488705,38.93,159.93,159.82,2.6563]
[1727447488900,38.93,159.91,159.8,2.5046]
[1727447489099,42.01863762,159.91,159.82,3.1272]
[1727447489297,42.01863762,159.91,159.8,2.5046]
[1727447489997,3.1263,159.88,159.83,3.1271]